fUSD/lending_fUSD_20260702
["ID","MTS","AMOUNT","RATE_DAILY","PERIOD"]
[426881425,1782977443000,-800.0,0.0003,2]
[426881427,1782977443000,-200.0,0.0003,11]
[426881428,1782977443000,-505.99,0.0003,7]
[426881429,1782977443000,-12500.0,0.0003,2]
[426881430,1782977443000,-214.08,0.0003,7]
[426881419,1782977443000,-2242.29,0.0003,2]
[426881405,1782977443000,-5012.47454875,0.0003,30]
[426881376,1782977443000,-529.79,0.00029999,7]
[426881402,1782977443000,-1000.0,0.0003,2]
[426881404,1782977443000,-266.03571685,0.0003,2]
[426881378,1782977443000,-529.79,0.00029999,7]
[426881379,1782977443000,-300.0,0.00029999,10]
[426881380,1782977443000,-300.0,0.00029999,10]
[426881381,1782977443000,-150.0,0.0003,2]
[426881382,1782977443000,-276.17122023,0.0003,2]
[426881384,1782977443000,-150.0,0.0003,2]
[426881385,1782977443000,-177.5732311,0.0003,2]
[426881386,1782977443000,-800.0,0.0003,2]
[426881387,1782977443000,-200.0,0.0003,11]
[426881388,1782977443000,-200.0,0.0003,11]
[426881389,1782977443000,-200.0,0.0003,11]
[426881383,1782977443000,-150.0,0.0003,2]
[426881391,1782977443000,-156.539999,0.0003,11]
[426881390,1782977443000,-200.0,0.0003,11]
[426881401,1782977443000,-440078.94478486,0.0003,10]
[426881400,1782977443000,-1860.99940478,0.0003,2]
[426881399,1782977443000,-1130.26499916,0.0003,2]
[426881398,1782977443000,-2000.0,0.0003,14]
[426881397,1782977443000,-10392.52689123,0.0003,2]
[426881403,1782977443000,-166.90179368,0.0003,2]
[426881392,1782977443000,-297.87666414,0.0003,2]
[426881395,1782977443000,-20350.31000386,0.0003,2]
[426881394,1782977443000,-10234.26626033,0.0003,5]
[426881393,1782977443000,-2508.61983874,0.0003,14]
[426881396,1782977443000,-1118.0806794,0.0003,2]
[426881475,1782977444000,-500.0,0.0003,2]
[426881472,1782977444000,-500.0,0.0003,2]
[426881471,1782977444000,-500.0,0.0003,2]
[426881468,1782977444000,-500.0,0.0003,2]
[426881463,1782977444000,-500.0,0.0003,2]
[426881467,1782977444000,-500.0,0.0003,2]
[426881466,1782977444000,-500.0,0.0003,2]
[426881465,1782977444000,-500.0,0.0003,2]
[426881464,1782977444000,-500.0,0.0003,2]
[426881476,1782977444000,-500.0,0.0003,2]
[426881469,1782977444000,-500.0,0.0003,2]
[426881470,1782977444000,-500.0,0.0003,2]
[426881488,1782977444000,-500.0,0.0003,2]
[426881474,1782977444000,-500.0,0.0003,2]
[426881477,1782977444000,-500.0,0.0003,2]
[426881479,1782977444000,-500.0,0.0003,2]
[426881478,1782977444000,-500.0,0.0003,2]
[426881480,1782977444000,-500.0,0.0003,2]
[426881481,1782977444000,-500.0,0.0003,2]
[426881484,1782977444000,-500.0,0.0003,2]
[426881487,1782977444000,-500.0,0.0003,2]
[426881483,1782977444000,-500.0,0.0003,2]
[426881485,1782977444000,-500.0,0.0003,2]
[426881482,1782977444000,-500.0,0.0003,2]
[426881461,1782977444000,-500.0,0.0003,2]
[426881473,1782977444000,-500.0,0.0003,2]
[426881459,1782977444000,-500.0,0.0003,2]
[426881447,1782977444000,-500.0,0.0003,2]
[426881460,1782977444000,-500.0,0.0003,2]
[426881432,1782977444000,-500.0,0.0003,2]
[426881486,1782977444000,-500.0,0.0003,2]
[426881434,1782977444000,-500.0,0.0003,2]
[426881435,1782977444000,-500.0,0.0003,2]
[426881437,1782977444000,-500.0,0.0003,2]
[426881439,1782977444000,-500.0,0.0003,2]
[426881438,1782977444000,-500.0,0.0003,2]
[426881442,1782977444000,-500.0,0.0003,2]
[426881449,1782977444000,-500.0,0.0003,2]
[426881446,1782977444000,-500.0,0.0003,2]
[426881445,1782977444000,-500.0,0.0003,2]
[426881443,1782977444000,-500.0,0.0003,2]
[426881441,1782977444000,-500.0,0.0003,2]
[426881440,1782977444000,-500.0,0.0003,2]
[426881444,1782977444000,-500.0,0.0003,2]
[426881448,1782977444000,-500.0,0.0003,2]
[426881450,1782977444000,-500.0,0.0003,2]
[426881452,1782977444000,-500.0,0.0003,2]
[426881451,1782977444000,-500.0,0.0003,2]
[426881453,1782977444000,-500.0,0.0003,2]
[426881454,1782977444000,-500.0,0.0003,2]
[426881455,1782977444000,-500.0,0.0003,2]
[426881456,1782977444000,-500.0,0.0003,2]
[426881457,1782977444000,-500.0,0.0003,2]
[426881458,1782977444000,-500.0,0.0003,2]
[426881462,1782977444000,-500.0,0.0003,2]
[426881433,1782977444000,-500.0,0.0003,2]
[426881491,1782977444000,-500.0,0.0003,2]
[426881490,1782977444000,-500.0,0.0003,2]
[426881521,1782977444000,-500.0,0.0003,2]
[426881523,1782977444000,-151.0,0.0003,7]
[426881524,1782977444000,-315.763905,0.0003,7]
[426881525,1782977444000,-151.0,0.0003,7]
[426881526,1782977444000,-151.0,0.0003,7]
[426881528,1782977444000,-151.0,0.0003,7]
[426881529,1782977444000,-215.400165,0.0003,7]
[426881527,1782977444000,-151.0,0.0003,7]
[426881530,1782977444000,-151.0,0.0003,7]
[426881531,1782977444000,-151.0,0.0003,7]
[426881532,1782977444000,-169.076338,0.0003,7]
[426881533,1782977444000,-3833.27,0.0003,2]
[426881522,1782977444000,-152.117066,0.0003,2]
[426881534,1782977444000,-186.223403,0.0003,7]
[426881538,1782977444000,-186.223403,0.0003,7]
[426881541,1782977444000,-2010.916756,0.0003,7]
[426881537,1782977444000,-2010.916756,0.0003,7]
[426881535,1782977444000,-186.223403,0.0003,7]
[426881536,1782977444000,-186.223403,0.0003,7]
[426881539,1782977444000,-2010.916756,0.0003,7]
[426881542,1782977444000,-1266.173167,0.0003,7]
[426881543,1782977444000,-1266.173167,0.0003,7]
[426881544,1782977444000,-1266.173167,0.0003,7]
[426881547,1782977444000,-1698.099606,0.0003,7]
[426881546,1782977444000,-13486.5,0.0003,7]
[426881489,1782977444000,-500.0,0.0003,2]
[426881540,1782977444000,-2010.916756,0.0003,7]
[426881520,1782977444000,-500.0,0.0003,2]
[426881545,1782977444000,-1266.173167,0.0003,7]
[426881519,1782977444000,-315.763905,0.0003,7]
[426881518,1782977444000,-500.0,0.0003,2]
[426881494,1782977444000,-500.0,0.0003,2]
[426881496,1782977444000,-500.0,0.0003,2]
[426881497,1782977444000,-500.0,0.0003,2]
[426881495,1782977444000,-500.0,0.0003,2]
[426881493,1782977444000,-500.0,0.0003,2]
[426881499,1782977444000,-500.0,0.0003,2]
[426881498,1782977444000,-500.0,0.0003,2]
[426881500,1782977444000,-500.0,0.0003,2]
[426881501,1782977444000,-500.0,0.0003,2]
[426881503,1782977444000,-500.0,0.0003,2]
[426881502,1782977444000,-500.0,0.0003,2]
[426881504,1782977444000,-500.0,0.0003,2]
[426881492,1782977444000,-500.0,0.0003,2]
[426881505,1782977444000,-500.0,0.0003,2]
[426881507,1782977444000,-500.0,0.0003,2]
[426881517,1782977444000,-500.0,0.0003,2]
[426881516,1782977444000,-500.0,0.0003,2]
[426881514,1782977444000,-500.0,0.0003,2]
[426881513,1782977444000,-315.763905,0.0003,7]
[426881515,1782977444000,-500.0,0.0003,2]
[426881511,1782977444000,-500.0,0.0003,2]
[426881509,1782977444000,-500.0,0.0003,2]
[426881508,1782977444000,-315.763905,0.0003,7]
[426881506,1782977444000,-500.0,0.0003,2]
[426881510,1782977444000,-500.0,0.0003,2]
[426881512,1782977444000,-500.0,0.0003,2]
[426881582,1782977445000,-552.595958,0.0003,7]
[426881580,1782977445000,-552.595958,0.0003,7]
[426881581,1782977445000,-751.885621,0.0003,7]
[426881586,1782977445000,-155.434734,0.0003,7]
[426881577,1782977445000,-181.639544,0.0003,7]
[426881578,1782977445000,-552.595958,0.0003,7]
[426881585,1782977445000,-1000.0,0.0003,2]
[426881583,1782977445000,-200.0,0.0003,2]
[426881579,1782977445000,-751.885621,0.0003,7]
[426881584,1782977445000,-30000.0,0.0003,5]
[426881588,1782977445000,-155.434734,0.0003,7]
[426881596,1782977445000,-151.0,0.0003,30]
[426881589,1782977445000,-155.434734,0.0003,7]
[426881591,1782977445000,-151.0,0.0003,30]
[426881598,1782977445000,-277.656064,0.0003,30]
[426881590,1782977445000,-151.0,0.0003,30]
[426881593,1782977445000,-151.0,0.0003,30]
[426881597,1782977445000,-151.0,0.0003,30]
[426881599,1782977445000,-156.325093,0.0003,7]
[426881595,1782977445000,-151.0,0.0003,30]
[426881592,1782977445000,-151.0,0.0003,30]
[426881594,1782977445000,-151.0,0.0003,30]
[426881600,1782977445000,-156.325093,0.0003,7]
[426881576,1782977445000,-751.885621,0.0003,7]
[426881587,1782977445000,-155.434734,0.0003,7]
[426881575,1782977445000,-552.595958,0.0003,7]
[426881559,1782977445000,-151.0,0.0003,7]
[426881573,1782977445000,-751.885621,0.0003,7]
[426881549,1782977445000,-1698.099606,0.0003,7]
[426881548,1782977445000,-1698.099606,0.0003,7]
[426881551,1782977445000,-151.0,0.0003,7]
[426881550,1782977445000,-1698.099606,0.0003,7]
[426881552,1782977445000,-151.0,0.0003,7]
[426881602,1782977445000,-156.325093,0.0003,7]
[426881554,1782977445000,-1519.793693,0.0003,7]
[426881555,1782977445000,-200.0,0.0003,2]
[426881553,1782977445000,-1519.793693,0.0003,7]
[426881558,1782977445000,-151.0,0.0003,7]
[426881556,1782977445000,-1519.793693,0.0003,7]
[426881557,1782977445000,-1519.793693,0.0003,7]
[426881562,1782977445000,-310.0,0.0003,2]
[426881560,1782977445000,-151.0,0.0003,7]
[426881563,1782977445000,-4818.077937,0.0003,7]
[426881561,1782977445000,-151.0,0.0003,7]
[426881564,1782977445000,-4818.077937,0.0003,7]
[426881566,1782977445000,-4818.077937,0.0003,7]
[426881565,1782977445000,-4818.077937,0.0003,7]
[426881567,1782977445000,-200.0,0.0003,2]
[426881570,1782977445000,-557.162115,0.0003,7]
[426881571,1782977445000,-557.162115,0.0003,7]
[426881569,1782977445000,-557.162115,0.0003,7]
[426881572,1782977445000,-151.0,0.0003,7]
[426881568,1782977445000,-557.162115,0.0003,7]
[426881574,1782977445000,-151.0,0.0003,7]
[426881601,1782977445000,-200.0,0.0003,2]
[426881652,1782977445000,-801.28328816,0.00028931,2]
[426881608,1782977445000,-301.92,0.0003,7]
[426881634,1782977445000,-222.666344,0.00030073,7]
[426881633,1782977445000,-5199.87640116,0.00030073,3]
[426881636,1782977445000,-300.43,0.00030076,7]
[426881637,1782977445000,-300.0,0.00030088,10]
[426881635,1782977445000,-151.0,0.00030073,7]
[426881640,1782977445000,-300.0,0.00030088,10]
[426881641,1782977445000,-666.0,0.00030088,10]
[426881639,1782977445000,-1121.52,0.00030088,7]
[426881644,1782977445000,-331.37629794,0.00030088,10]
[426881642,1782977445000,-529.79,0.00030088,7]
[426881647,1782977445000,-300.0,0.00030089,10]
[426881632,1782977445000,-15000.0,0.00030073,3]
[426881645,1782977445000,-306.43330787,0.00030089,10]
[426881648,1782977445000,-802.46210219,0.00030089,10]
[426881649,1782977445000,-300.0,0.00030089,10]
[426881650,1782977445000,-53495.43097814,0.00030089,2]
[426881651,1782977445000,-546.85462969,0.00030089,2]
[426881653,1782977445000,-801.28328816,0.0003008,2]
[426881654,1782977445000,-56571.49439217,0.00030089,2]
[426881655,1782977445000,-1121.52,0.00030089,7]
[426881656,1782977445000,-811.30983017,0.00030089,7]
[426881658,1782977445000,-340.250989,0.0003,7]
[426881659,1782977445000,-294.24669065,0.00030089,7]
[426881603,1782977445000,-156.325093,0.0003,7]
[426881643,1782977445000,-300.0,0.00030088,10]
[426881631,1782977445000,-8464.27785105,0.00030073,3]
[426881646,1782977445000,-300.0,0.00030089,10]
[426881629,1782977445000,-3765.61372248,0.00030073,3]
[426881638,1782977445000,-300.0,0.00030088,10]
[426881605,1782977445000,-370.804641,0.0003,7]
[426881612,1782977445000,-151.0,0.0003,7]
[426881610,1782977445000,-151.0,0.0003,7]
[426881606,1782977445000,-370.804641,0.0003,7]
[426881611,1782977445000,-151.0,0.0003,7]
[426881607,1782977445000,-370.804641,0.0003,7]
[426881609,1782977445000,-200.0,0.0003,2]
[426881614,1782977445000,-1017.09064,0.0003,7]
[426881615,1782977445000,-1017.09064,0.0003,7]
[426881613,1782977445000,-1017.09064,0.0003,7]
[426881619,1782977445000,-151.0,0.00030055,7]
[426881616,1782977445000,-1017.09064,0.0003,7]
[426881604,1782977445000,-370.804641,0.0003,7]
[426881627,1782977445000,-300.0,0.00030072,10]
[426881620,1782977445000,-1283.47347249,0.00030056,2]
[426881618,1782977445000,-340.250989,0.0003,7]
[426881623,1782977445000,-700.0,0.0003007,2]
[426881625,1782977445000,-500.0,0.0003007,2]
[426881621,1782977445000,-151.0,0.0003007,7]
[426881624,1782977445000,-800.0,0.0003007,2]
[426881622,1782977445000,-723.6523455,0.0003007,2]
[426881617,1782977445000,-340.250989,0.0003,7]
[426881626,1782977445000,-500.0,0.0003007,2]
[426881628,1782977445000,-300.0,0.00030072,10]
[426881630,1782977445000,-25000.0,0.00030073,3]
[426881697,1782977446000,-151.0,0.0003009,7]
[426881695,1782977446000,-1698.099606,0.0003009,7]
[426881699,1782977446000,-1519.793693,0.0003009,7]
[426881698,1782977446000,-151.0,0.0003009,7]
[426881692,1782977446000,-1266.173167,0.0003009,7]
[426881690,1782977446000,-1266.173167,0.0003009,7]
[426881689,1782977446000,-1266.173167,0.0003009,7]
[426881696,1782977446000,-1698.099606,0.0003009,7]
[426881693,1782977446000,-1698.099606,0.0003009,7]
[426881691,1782977446000,-1266.173167,0.0003009,7]
[426881702,1782977446000,-1519.793693,0.0003009,7]
[426881694,1782977446000,-1698.099606,0.0003009,7]
[426881700,1782977446000,-1519.793693,0.0003009,7]
[426881708,1782977446000,-4818.077937,0.0003009,7]
[426881704,1782977446000,-151.0,0.0003009,7]
[426881701,1782977446000,-1519.793693,0.0003009,7]
[426881706,1782977446000,-151.0,0.0003009,7]
[426881703,1782977446000,-151.0,0.0003009,7]
[426881707,1782977446000,-4818.077937,0.0003009,7]
[426881709,1782977446000,-4818.077937,0.0003009,7]
[426881710,1782977446000,-4818.077937,0.0003009,7]
[426881711,1782977446000,-151.0,0.0003009,2]
[426881712,1782977446000,-251.685677,0.0003009,2]
[426881713,1782977446000,-557.162115,0.0003009,7]
[426881714,1782977446000,-557.162115,0.0003009,7]
[426881705,1782977446000,-151.0,0.0003009,7]
[426881688,1782977446000,-2010.916756,0.0003009,7]
[426881663,1782977446000,-18216.44839822,0.0003009,2]
[426881686,1782977446000,-2010.916756,0.0003009,7]
[426881718,1782977446000,-751.885621,0.0003009,7]
[426881661,1782977446000,-529.79,0.00030089,7]
[426881660,1782977446000,-15.96347918,0.00030089,7]
[426881662,1782977446000,-529.79,0.00030089,7]
[426881664,1782977446000,-1035.39100963,0.0003009,2]
[426881665,1782977446000,-416156.39114413,0.0003009,2]
[426881672,1782977446000,-315.763905,0.0003009,7]
[426881669,1782977446000,-151.0,0.0003009,7]
[426881668,1782977446000,-151.0,0.0003009,7]
[426881670,1782977446000,-315.763905,0.0003009,7]
[426881667,1782977446000,-151.0,0.0003009,7]
[426881671,1782977446000,-315.763905,0.0003009,7]
[426881674,1782977446000,-315.763905,0.0003009,7]
[426881673,1782977446000,-151.0,0.0003009,7]
[426881666,1782977446000,-151.0,0.0003009,7]
[426881676,1782977446000,-151.0,0.0003009,7]
[426881675,1782977446000,-151.0,0.0003009,7]
[426881677,1782977446000,-151.0,0.0003009,7]
[426881685,1782977446000,-186.223403,0.0003009,7]
[426881683,1782977446000,-186.223403,0.0003009,7]
[426881684,1782977446000,-2010.916756,0.0003009,7]
[426881682,1782977446000,-186.223403,0.0003009,7]
[426881680,1782977446000,-151.0,0.0003009,7]
[426881679,1782977446000,-156.488624,0.0003009,7]
[426881681,1782977446000,-186.223403,0.0003009,7]
[426881687,1782977446000,-2010.916756,0.0003009,7]
[426881716,1782977446000,-557.162115,0.0003009,7]
[426881678,1782977446000,-151.0,0.0003009,7]
[426881715,1782977446000,-557.162115,0.0003009,7]
[426881756,1782977446000,-150.0,0.0003011,5]
[426881754,1782977446000,-108890.13566582,0.000301,7]
[426881751,1782977446000,-598.33761562,0.00030099,2]
[426881749,1782977446000,-300.0,0.00030099,10]
[426881753,1782977446000,-529.79,0.00030099,7]
[426881755,1782977446000,-15000.0,0.000301,2]
[426881752,1782977446000,-1121.52,0.00030099,7]
[426881773,1782977446000,-500.0,0.00030136,2]
[426881748,1782977446000,-340.250989,0.0003009,7]
[426881757,1782977446000,-150.0,0.0003011,5]
[426881759,1782977446000,-12500.0,0.00030125,2]
[426881758,1782977446000,-163.9566741,0.0003011,5]
[426881760,1782977446000,-12500.0,0.00030125,2]
[426881763,1782977446000,-666.0,0.00030135,10]
[426881761,1782977446000,-214.62,0.00030134,30]
[426881767,1782977446000,-151.0,0.00030136,7]
[426881765,1782977446000,-300.0,0.00030135,10]
[426881766,1782977446000,-164.39336,0.00030136,7]
[426881769,1782977446000,-500.0,0.00030136,2]
[426881764,1782977446000,-300.0,0.00030135,10]
[426881768,1782977446000,-200.46,0.00030136,5]
[426881770,1782977446000,-500.0,0.00030136,2]
[426881772,1782977446000,-500.0,0.00030136,2]
[426881771,1782977446000,-500.0,0.00030136,2]
[426881717,1782977446000,-151.0,0.0003009,7]
[426881750,1782977446000,-300.0,0.00030099,10]
[426881747,1782977446000,-340.250989,0.0003009,7]
[426881762,1782977446000,-300.0,0.00030135,10]
[426881745,1782977446000,-1017.09064,0.0003009,7]
[426881746,1782977446000,-340.250989,0.0003009,7]
[426881719,1782977446000,-151.0,0.0003009,7]
[426881722,1782977446000,-552.595958,0.0003009,7]
[426881720,1782977446000,-552.595958,0.0003009,7]
[426881721,1782977446000,-751.885621,0.0003009,7]
[426881732,1782977446000,-156.325093,0.0003009,7]
[426881725,1782977446000,-751.885621,0.0003009,7]
[426881730,1782977446000,-155.434734,0.0003009,7]
[426881727,1782977446000,-155.434734,0.0003009,7]
[426881726,1782977446000,-552.595958,0.0003009,7]
[426881724,1782977446000,-552.595958,0.0003009,7]
[426881729,1782977446000,-155.434734,0.0003009,7]
[426881728,1782977446000,-155.434734,0.0003009,7]
[426881723,1782977446000,-751.885621,0.0003009,7]
[426881733,1782977446000,-156.325093,0.0003009,7]
[426881731,1782977446000,-156.325093,0.0003009,7]
[426881736,1782977446000,-370.804641,0.0003009,7]
[426881740,1782977446000,-151.0,0.0003009,7]
[426881744,1782977446000,-1017.09064,0.0003009,7]
[426881739,1782977446000,-151.0,0.0003009,7]
[426881743,1782977446000,-1017.09064,0.0003009,7]
[426881742,1782977446000,-1017.09064,0.0003009,7]
[426881737,1782977446000,-370.804641,0.0003009,7]
[426881738,1782977446000,-370.804641,0.0003009,7]
[426881735,1782977446000,-370.804641,0.0003009,7]
[426881734,1782977446000,-156.325093,0.0003009,7]
[426881741,1782977446000,-151.0,0.0003009,7]
[426881798,1782977447000,-561.08755963,0.00030136,2]
[426881797,1782977447000,-500.0,0.00030136,2]
[426881800,1782977447000,-2000.0,0.00030136,2]
[426881799,1782977447000,-2000.0,0.00030136,2]
[426881796,1782977447000,-500.0,0.00030136,2]
[426881801,1782977447000,-2000.0,0.00030136,2]
[426881802,1782977447000,-2000.0,0.00030136,2]
[426881804,1782977447000,-2000.0,0.00030136,2]
[426881807,1782977447000,-2000.0,0.00030136,2]
[426881805,1782977447000,-2000.0,0.00030136,2]
[426881806,1782977447000,-2000.0,0.00030136,2]
[426881811,1782977447000,-2000.0,0.00030136,2]
[426881809,1782977447000,-2000.0,0.00030136,2]
[426881808,1782977447000,-2000.0,0.00030136,2]
[426881810,1782977447000,-2000.0,0.00030136,2]
[426881794,1782977447000,-500.0,0.00030136,2]
[426881812,1782977447000,-2000.0,0.00030136,2]
[426881803,1782977447000,-2000.0,0.00030136,2]
[426881795,1782977447000,-500.0,0.00030136,2]
[426881782,1782977447000,-500.0,0.00030136,2]
[426881792,1782977447000,-500.0,0.00030136,2]
[426881813,1782977447000,-2000.0,0.00030136,2]
[426881776,1782977447000,-500.0,0.00030136,2]
[426881774,1782977447000,-500.0,0.00030136,2]
[426881777,1782977447000,-500.0,0.00030136,2]
[426881775,1782977447000,-500.0,0.00030136,2]
[426881778,1782977447000,-500.0,0.00030136,2]
[426881780,1782977447000,-500.0,0.00030136,2]
[426881779,1782977447000,-500.0,0.00030136,2]
[426881793,1782977447000,-500.0,0.00030136,2]
[426881783,1782977447000,-500.0,0.00030136,2]
[426881784,1782977447000,-500.0,0.00030136,2]
[426881786,1782977447000,-500.0,0.00030136,2]
[426881785,1782977447000,-500.0,0.00030136,2]
[426881790,1782977447000,-500.0,0.00030136,2]
[426881787,1782977447000,-500.0,0.00030136,2]
[426881789,1782977447000,-500.0,0.00030136,2]
[426881788,1782977447000,-500.0,0.00030136,2]
[426881791,1782977447000,-500.0,0.00030136,2]
[426881781,1782977447000,-500.0,0.00030136,2]
[426881817,1782977447000,-2000.0,0.00030136,2]
[426881818,1782977447000,-2000.0,0.00030136,2]
[426881814,1782977447000,-2000.0,0.00030136,2]
[426881840,1782977447000,-2000.0,0.00030136,2]
[426881841,1782977447000,-2000.0,0.00030136,2]
[426881842,1782977447000,-2000.0,0.00030136,2]
[426881843,1782977447000,-2000.0,0.00030136,2]
[426881845,1782977447000,-2000.0,0.00030136,2]
[426881844,1782977447000,-2000.0,0.00030136,2]
[426881846,1782977447000,-1072.17329972,0.00030136,2]
[426881848,1782977447000,-500.0,0.00030136,30]
[426881850,1782977447000,-500.0,0.00030136,30]
[426881849,1782977447000,-500.0,0.00030136,30]
[426881852,1782977447000,-500.0,0.00030136,30]
[426881854,1782977447000,-500.0,0.00030136,30]
[426881853,1782977447000,-500.0,0.00030136,30]
[426881855,1782977447000,-500.0,0.00030136,30]
[426881851,1782977447000,-500.0,0.00030136,30]
[426881856,1782977447000,-500.0,0.00030136,30]
[426881816,1782977447000,-2000.0,0.00030136,2]
[426881839,1782977447000,-2000.0,0.00030136,2]
[426881832,1782977447000,-2000.0,0.00030136,2]
[426881847,1782977447000,-500.0,0.00030136,30]
[426881834,1782977447000,-2000.0,0.00030136,2]
[426881815,1782977447000,-2000.0,0.00030136,2]
[426881837,1782977447000,-2000.0,0.00030136,2]
[426881819,1782977447000,-2000.0,0.00030136,2]
[426881820,1782977447000,-2000.0,0.00030136,2]
[426881821,1782977447000,-2000.0,0.00030136,2]
[426881822,1782977447000,-2000.0,0.00030136,2]
[426881823,1782977447000,-2000.0,0.00030136,2]
[426881825,1782977447000,-2000.0,0.00030136,2]
[426881827,1782977447000,-2000.0,0.00030136,2]
[426881824,1782977447000,-2000.0,0.00030136,2]
[426881826,1782977447000,-2000.0,0.00030136,2]
[426881828,1782977447000,-2000.0,0.00030136,2]
[426881829,1782977447000,-2000.0,0.00030136,2]
[426881830,1782977447000,-2000.0,0.00030136,2]
[426881831,1782977447000,-2000.0,0.00030136,2]
[426881836,1782977447000,-2000.0,0.00030136,2]
[426881833,1782977447000,-2000.0,0.00030136,2]
[426881835,1782977447000,-2000.0,0.00030136,2]
[426881838,1782977447000,-2000.0,0.00030136,2]
[426881892,1782977448000,-300.0,0.00030139,10]
[426881889,1782977448000,-747.88,0.00030137,30]
[426881888,1782977448000,-2445.76316741,0.00030137,7]
[426881886,1782977448000,-194.02009975,0.00030137,2]
[426881884,1782977448000,-3516.81527967,0.00030137,7]
[426881883,1782977448000,-153.0,0.00030137,120]
[426881885,1782977448000,-3516.81527967,0.00030137,7]
[426881893,1782977448000,-1121.52,0.00030139,7]
[426881887,1782977448000,-2445.76316741,0.00030137,7]
[426881891,1782977448000,-300.0,0.00030139,10]
[426881899,1782977448000,-822.61535629,0.00030214,2]
[426881894,1782977448000,-529.79,0.00030139,7]
[426881895,1782977448000,-361.72657512,0.00030172,2]
[426881897,1782977448000,-15874.79264868,0.000302,2]
[426881896,1782977448000,-15000.0,0.000302,2]
[426881900,1782977448000,-1605.0,0.00030214,2]
[426881898,1782977448000,-1338.0,0.00030212,2]
[426881901,1782977448000,-300.0,0.00030249,10]
[426881902,1782977448000,-300.0,0.00030249,10]
[426881903,1782977448000,-300.0,0.00030249,10]
[426881881,1782977448000,-201.0,0.00030137,120]
[426881890,1782977448000,-214.0,0.00030137,7]
[426881880,1782977448000,-235.35724197,0.00030137,30]
[426881863,1782977448000,-500.0,0.00030136,30]
[426881879,1782977448000,-723.13960153,0.00030137,2]
[426881904,1782977448000,-2500.0,0.0003025,2]
[426881857,1782977448000,-500.0,0.00030136,30]
[426881859,1782977448000,-500.0,0.00030136,30]
[426881862,1782977448000,-500.0,0.00030136,30]
[426881860,1782977448000,-500.0,0.00030136,30]
[426881858,1782977448000,-500.0,0.00030136,30]
[426881861,1782977448000,-500.0,0.00030136,30]
[426881864,1782977448000,-500.0,0.00030136,15]
[426881866,1782977448000,-500.0,0.00030136,15]
[426881865,1782977448000,-500.0,0.00030136,15]
[426881882,1782977448000,-254.0,0.00030137,120]
[426881870,1782977448000,-150.0,0.00030137,2]
[426881873,1782977448000,-799.0,0.00030137,30]
[426881872,1782977448000,-475.46293887,0.00030137,2]
[426881869,1782977448000,-510.87608659,0.00030136,15]
[426881867,1782977448000,-500.0,0.00030136,15]
[426881871,1782977448000,-237.73146944,0.00030137,2]